bitfinex-derivatives/quotes_SOLF0:USTF0_20240920
["timestamp","ask_amount","ask_price","bid_price","bid_amount"]
[1726866236854,2.02793642,147.17,147.14,4.6924]
[1726866237056,2.02793642,147.17,147.14,1.2946]
[1726866237251,2.02793642,147.17,147.09,137.2356]
[1726866239163,2.02793642,147.17,147.16,3.3974]
[1726866245369,1.95517016,147.18,147.17,3.3972]
[1726866257469,1.95517016,147.18,147.16,3.3974]
[1726866260273,1.95517016,147.18,147.17,3.3972]
[1726866263973,2.21656477,147.19,147.18,3.397]
[1726866265088,2.0273692,147.22,147.14,8.44626421]
[1726866265381,2.0273692,147.22,147.15,4.48633563]
[1726866265778,2.0273692,147.22,147.16,4.48633563]
[1726866265989,2.0273692,147.22,147.21,3.3963]
[1726866276094,2.38532747,147.24,147.18,10.71926132]
[1726866276395,2.38532747,147.24,147.19,12.05256132]
[1726866276892,2.38532747,147.24,147.19,1.3333]
[1726866277090,2.38532747,147.24,147.19,4.70523506]
[1726866277290,2.38532747,147.24,147.19,15.42449638]
[1726866277491,2.38532747,147.24,147.19,4.70523506]
[1726866277798,2.38532747,147.24,147.23,3.3958]
[1726866284200,2.38532747,147.24,147.22,3.396]
[1726866284503,2.38532747,147.24,147.19,15.42148938]
[1726866284696,2.38532747,147.24,147.22,3.3959]
[1726866287100,2.38532747,147.24,147.21,3.3963]
[1726866287307,2.38532747,147.24,147.17,2.34639404]
[1726866287504,3.3969,147.19,147.13,3.3981]
[1726866287712,2.763,147.23,147.13,3.3981]
[1726866287903,6.16832365,147.23,147.13,3.3981]
[1726866288102,2.763,147.23,147.13,3.3981]
[1726866288707,2.763,147.23,147.15,3.3975]
[1726866288708,3.3965,147.2,147.15,3.3975]
[1726866289900,3.3964,147.21,147.13,3.35916116]
[1726866290101,2.763,147.23,147.1,6.22834738]
[1726866290302,2.763,147.23,147.11,6.22834738]
[1726866290504,2.763,147.23,147.1,6.22834738]
[1726866290713,2.763,147.23,147.11,6.22834738]
[1726866291010,3.3964,147.21,147.07,6.22834738]
[1726866291211,3.3964,147.21,147.08,6.22834738]
[1726866291414,3.3964,147.21,147.09,6.22834738]
[1726866291609,3.3964,147.21,147.15,3.3975]
[1726866292213,3.3964,147.21,147.16,3.3974]
[1726866293614,3.3966,147.2,147.15,3.3976]
[1726866293818,1.2957,147.22,147.12,6.22834738]
[1726866294113,3.3963,147.21,147.11,6.22834738]
[1726866294316,3.3963,147.21,147.12,6.22834738]
[1726866294609,3.3963,147.21,147.16,3.3973]
[1726866294813,1.2957,147.22,147.15,3.33311324]
[1726866295014,1.2957,147.22,147.13,6.22834738]
[1726866295210,1.2957,147.22,147.11,6.22834738]
[1726866295410,2.763,147.23,147.12,6.22834738]
[1726866295605,2.763,147.23,147.18,3.3968]
[1726866295813,2.763,147.23,147.18,3.39786682]
[1726866296014,2.763,147.23,147.15,6.22834738]
[1726866296314,2.763,147.23,147.16,6.22834738]
[1726866296911,2.763,147.23,147.2,3.3965]
[1726866297107,2.763,147.23,147.16,6.22834738]
[1726866297314,2.38532747,147.24,147.17,6.22834738]
[1726866297616,2.38532747,147.24,147.18,6.22834738]
[1726866297815,2.38532747,147.24,147.19,6.22834738]
[1726866298011,2.38532747,147.24,147.17,6.22834738]
[1726866298213,2.38532747,147.24,147.23,3.3958]
[1726866298615,2.38532747,147.24,147.2,6.22834738]
[1726866298817,2.38532747,147.24,147.21,6.22834738]
[1726866299021,2.38532747,147.24,147.18,6.22834738]
[1726866299215,2.38532747,147.24,147.23,3.3958]
[1726866300420,1.98902319,147.25,147.24,3.3956]
[1726866300612,1.98902319,147.25,147.24,9.62394738]
[1726866300812,1.98902319,147.25,147.24,3.3956]
[1726866301120,1.88028344,147.26,147.24,3.3956]
[1726866301121,0.00908344,147.26,147.25,3.3954]
[1726866301344,0.00908344,147.26,147.25,13.0053013]
[1726866301928,0.94900805,147.28,147.27,3.3949]
[1726866303021,0.94900805,147.28,147.27,9.62324738]
[1726866303211,0.94900805,147.28,147.27,3.3949]
[1726866303416,3.0986609,147.3,147.29,3.3944]
[1726866303923,3.0986609,147.3,147.29,6.76845823]
[1726866304316,3.50605361,147.31,147.3,3.3942]
[1726866305318,0.10605361,147.31,147.3,3.3942]
[1726866305514,0.10605361,147.31,147.3,12.96058046]
[1726866305824,0.10605361,147.31,147.3,6.74596765]
[1726866306021,0.10605361,147.31,147.3,3.35176765]
[1726866306417,0.10605361,147.31,147.29,135.78]
[1726866306720,0.10605361,147.31,147.3,3.3942]
[1726866306922,0.10605361,147.31,147.3,6.78600294]
[1726866307516,2.07751129,147.33,147.32,3.3938]
[1726866308220,2.62973151,147.34,147.33,3.3935]
[1726866308423,2.62973151,147.34,147.33,6.7917493]
[1726866308622,2.62973151,147.34,147.33,3.3935]
[1726866309226,2.62973151,147.34,147.33,6.74311666]
[1726866310227,2.04423236,147.35,147.34,3.3933]
[1726866311628,1.47019809,147.36,147.35,3.3931]
[1726866311934,1.47019809,147.36,147.35,6.82854338]
[1726866312131,1.47019809,147.36,147.35,3.3931]
[1726866312437,2.65957469,147.37,147.36,3.3928]
[1726866313023,17.11342452,147.38,147.37,3.3926]
[1726866314337,225.72304643,147.55,147.43,1.6172795]
[1726866314536,1.4106,147.46,147.37,22.40275422]
[1726866314837,1.4106,147.46,147.37,3.40275422]
[1726866315044,1.4262,147.45,147.3,12.99588764]
[1726866315239,1.4262,147.45,147.31,1.24646276]
[1726866316534,1.4262,147.45,147.44,3.391]
[1726866317038,1.4264,147.52,147.41,135.68]
[1726866317240,2.7118,147.51,147.41,139.102177]
[1726866317844,2.7118,147.51,147.45,3.3907]
[1726866318035,2.7118,147.51,147.41,139.102177]
[1726866319461,2.7118,147.51,147.44,3.391]
[1726866319643,2.7118,147.51,147.41,139.102177]
[1726866321844,2.7118,147.51,147.42,135.64]
[1726866322242,2.7118,147.51,147.42,138.94542372]
[1726866322948,2.7118,147.51,147.42,135.64]
[1726866323835,3.3897,147.5,147.43,3.3912]
[1726866324094,2.7118,147.51,147.42,135.64]
[1726866325145,2.7118,147.51,147.42,131.3618]
[1726866325342,2.7118,147.51,147.4,3.3917]
[1726866325542,3.3905,147.46,147.4,3.3917]
[1726866325838,3.3905,147.46,147.41,3.3917]
[1726866326039,3.3904,147.47,147.41,3.3917]
[1726866326239,2.7118,147.51,147.33,135.64]
[1726866326441,2.7118,147.51,147.42,3.3912]
[1726866326752,3.3901,147.48,147.42,3.3912]
[1726866327044,2.7118,147.51,147.33,135.64]
[1726866327645,2.7118,147.51,147.34,1.24646637]
[1726866328246,2.7118,147.51,147.33,135.64]
[1726866328445,3.3904,147.47,147.33,135.64]
[1726866329043,3.3904,147.47,147.4,3.3917]
[1726866329248,6.1012,147.51,147.38,3.46279085]
[1726866329446,6.1012,147.51,147.33,135.64]
[1726866329447,2.7118,147.51,147.33,135.64]
[1726866329643,2.7118,147.51,147.42,3.3913]
[1726866329845,3.3899,147.49,147.42,3.3913]
[1726866330044,2.7118,147.51,147.42,3.3913]
[1726866330245,1.4264,147.48,147.38,3.34509192]
[1726866330447,1.4264,147.48,147.33,135.64]
[1726866330750,1.4264,147.48,147.34,1.24644478]
[1726866331245,1.4264,147.48,147.44,3.3909]
[1726866331444,1.4264,147.48,147.33,142.457]
[1726866331646,1.4264,147.48,147.34,1.24628739]
[1726866332550,2.7118,147.51,147.47,3.3903]
[1726866332852,2.7118,147.51,147.4,135.64]
[1726866333046,2.7118,147.51,147.48,3.3899]
[1726866333248,2.7118,147.51,147.4,139.10717308]
[1726866333449,2.7118,147.51,147.46,3.3905]
[1726866333648,2.7118,147.51,147.4,139.10717308]
[1726866334049,2.7118,147.51,147.47,3.3903]
[1726866335134,2.7118,147.51,147.4,139.10717308]
[1726866336959,2.7118,147.51,147.46,3.3903]
[1726866337763,2.7118,147.51,147.4,139.10717308]
[1726866338258,6.1012,147.51,147.4,139.10717308]
[1726866338461,2.7118,147.51,147.44,3.3909]
[1726866339153,2.7118,147.51,147.4,139.10717308]
[1726866339759,2.7118,147.51,147.46,3.3904]
[1726866340764,2.7118,147.51,147.4,139.10717308]
[1726866341677,2.7118,147.51,147.41,2.7318]
[1726866344074,2.7118,147.51,147.45,3.3906]
[1726866344270,2.7118,147.51,147.41,2.7318]
[1726866345480,18.7118,147.51,147.41,2.7318]
[1726866346971,18.7118,147.51,147.34,135.6]
[1726866347176,18.7118,147.51,147.36,2.7357]
[1726866347374,18.7118,147.51,147.37,1.24610501]
[1726866348076,18.7118,147.51,147.48,3.3899]
[1726866348376,18.7118,147.51,147.46,3.30949152]
[1726866348675,18.7118,147.51,147.36,2.7357]
[1726866348876,18.7118,147.51,147.37,1.2459303]
[1726866349076,18.7118,147.51,147.38,6.7847]
[1726866349270,18.7118,147.51,147.39,1.2459303]
[1726866349481,18.7118,147.51,147.49,3.3897]
[1726866349775,18.7118,147.51,147.46,3.45898305]
[1726866349968,18.7118,147.51,147.38,6.7847]
[1726866350167,18.7118,147.51,147.39,1.24588932]
[1726866350374,16.0,147.51,147.39,1.24588932]
[1726866351377,16.0,147.51,147.5,3.3896]
[1726866351567,7.89416117,147.53,147.46,135.58]
[1726866351771,0.3460256,147.53,147.52,3.3892]
[1726866353271,0.3460256,147.53,147.47,2.6851]
[1726866353685,0.3460256,147.53,147.47,1.3613]
[1726866353976,0.3460256,147.53,147.46,138.89424117]
[1726866355378,0.3460256,147.53,147.48,3.3899]
[1726866356275,16.0,147.52,147.48,3.3899]
[1726866356982,16.0,147.52,147.46,135.58]
[1726866357580,2.7057,147.51,147.46,135.58]
[1726866358683,2.7057,147.51,147.46,138.9705]
[1726866359580,2.7057,147.51,147.47,3.3903]
[1726866360620,2.7057,147.51,147.41,135.56]
[1726866361174,2.7057,147.51,147.46,3.3905]
[1726866361483,2.7057,147.51,147.46,3.3769504]
[1726866361688,16.0,147.52,147.51,3.3894]
[1726866361882,16.0,147.52,147.48,3.33525966]
[1726866362079,16.0,147.52,147.41,135.56]
[1726866362483,16.0,147.52,147.42,1.24569643]
[1726866362985,16.0,147.52,147.41,135.56]
[1726866363185,16.0,147.52,147.42,1.24569814]
[1726866363484,16.0,147.52,147.41,135.56]
[1726866364079,16.0,147.52,147.47,3.3901]
[1726866365080,16.0,147.52,147.41,135.56]
[1726866366580,3.3905,147.46,147.41,135.56]
[1726866366786,2.647,147.45,147.41,135.56]
[1726866367382,3.9362,147.45,147.35,3.4537625]
[1726866367591,3.9362,147.45,147.37,3.3925]
[1726866367592,7.327,147.45,147.37,3.3925]
[1726866367781,3.9362,147.45,147.33,9.50014734]
[1726866368182,3.3917,147.41,147.34,3.3931]
[1726866368385,19.9362,147.45,147.34,3.3931]
[1726866369002,3.3915,147.42,147.34,3.3931]
[1726866369292,3.43914865,147.42,147.25,223.0]
[1726866369491,3.43914865,147.42,147.14,135.6]
[1726866369492,16.0,147.43,147.18,223.0]
[1726866369686,16.0,147.43,147.22,7.08642176]
[1726866369887,19.43643559,147.43,147.23,1.24708154]
[1726866370279,19.43643559,147.43,147.19,8.34135461]
[1726866370484,3.3928,147.36,147.29,3.3942]
[1726866370683,19.43643559,147.43,147.2,1.24720078]
[1726866370882,20.44,147.37,147.05,135.64]
[1726866371086,1.16602069,147.36,147.11,1.2529]
[1726866371292,1.0,147.35,147.12,1.24793775]
[1726866371488,3.3959,147.23,147.12,1.24793775]
[1726866371888,3.3959,147.23,147.11,4.59257414]
[1726866372167,156.08,147.33,147.11,4.59257414]
[1726866372168,156.08,147.33,147.17,3.3972]
[1726866372287,1.16639115,147.32,147.17,3.3972]
[1726866372589,1.16639115,147.32,147.06,1.24776915]
[1726866372791,2.16639115,147.32,147.07,1.24853953]
[1726866373089,3.3962,147.22,147.07,5.94264798]
[1726866373289,3.3962,147.22,147.08,1.24853953]
[1726866373493,3.4676141,147.26,147.17,3.3972]
[1726866373797,4.42587242,147.32,147.07,140.33410845]
[1726866374093,3.3954,147.25,147.19,3.3966]
[1726866374497,1.4151,147.24,147.09,1.2534]
[1726866374691,3.3958,147.23,147.1,1.24833352]
[1726866376001,1.4151,147.24,147.1,1.24833352]
[1726866376496,4.8108,147.24,147.16,3.3973]
[1726866376995,1.4151,147.24,147.09,1.2534]
[1726866377205,1.4151,147.24,147.19,3.3967]
[1726866378225,1.4151,147.24,147.17,3.3971]
[1726866378424,1.4151,147.24,147.09,1.2534]
[1726866378701,1.4151,147.24,147.16,3.3973]
[1726866379199,1.4151,147.24,147.09,1.2534]
[1726866379400,1.4151,147.24,147.1,1.24818751]
[1726866380291,1.4151,147.24,147.18,3.397]
[1726866381320,1.4151,147.24,147.19,3.3966]
[1726866381907,1.4151,147.24,147.09,1.2534]
[1726866382102,1.4151,147.24,147.1,1.24818032]
[1726866382506,4.8107,147.24,147.11,1.24818123]
[1726866382801,4.8107,147.24,147.09,1.2534]
[1726866382802,4.8107,147.24,147.12,1.24818123]
[1726866383000,4.8107,147.24,147.13,1.24818725]
[1726866383205,1.4151,147.24,147.17,3.397]
[1726866383398,1.4151,147.24,147.09,1.2534]
[1726866383603,1.4151,147.24,147.1,1.24818679]
[1726866384458,2.8144,147.3,147.1,1.24818679]
[1726866384721,2.8144,147.3,147.11,1.24818679]
[1726866384795,2.8144,147.3,147.12,1.24818679]
[1726866385000,2.8144,147.3,147.13,1.24818679]
[1726866385200,2.8144,147.3,147.14,2.60418679]
[1726866385510,2.8144,147.3,147.15,1.24818679]
[1726866385709,2.8144,147.3,147.15,4.72620319]
[1726866385902,2.8144,147.3,147.16,2.58698679]
[1726866386209,2.8144,147.3,147.17,1.24818679]
[1726866386406,2.8144,147.3,147.17,1.2581]
[1726866386609,2.8144,147.3,147.18,1.24786045]
[1726866386909,2.8144,147.3,147.18,3.40135762]
[1726866387303,2.8144,147.3,147.23,3.3956]
[1726866387501,2.8144,147.3,147.19,3.34499653]
[1726866387802,2.8144,147.3,147.17,1.2581]
[1726866388007,2.8144,147.3,147.18,1.24789076]
[1726866388708,2.8144,147.3,147.17,4.72091157]
[1726866389009,2.8144,147.3,147.24,3.3956]
[1726866389507,2.8144,147.3,147.17,1.2581]
[1726866389707,2.8144,147.3,147.16,1.3388]
[1726866390009,2.8144,147.3,147.18,3.3968]
[1726866390405,2.8144,147.3,147.14,1.356]
[1726866390851,3.3952,147.26,147.19,3.3967]
[1726866391304,2.8144,147.3,147.16,3.37194538]
[1726866391502,2.8144,147.3,147.14,1.356]
[1726866391809,3.3949,147.28,147.21,3.3961]
[1726866392307,3.3949,147.28,147.22,3.396]
[1726866393398,3.3949,147.28,147.23,3.3958]
[1726866394199,2.8144,147.3,147.16,3.34635735]
[1726866394398,2.8144,147.3,147.14,1.356]
[1726866394604,2.8144,147.3,147.15,1.24809972]
[1726866394807,2.8144,147.3,147.15,4.66237583]
[1726866395111,3.3945,147.29,147.15,3.41427611]
[1726866395308,3.3945,147.29,147.16,1.24810025]
[1726866395506,3.3945,147.29,147.23,3.3957]
[1726866395706,6.2087,147.3,147.17,3.36401623]
[1726866395912,6.2087,147.3,147.14,1.356]
[1726866396208,2.8144,147.3,147.15,1.24806135]
[1726866396409,2.8144,147.3,147.15,4.62498214]
[1726866396612,2.8144,147.3,147.14,1.356]
[1726866396613,2.8144,147.3,147.25,3.3953]
[1726866397400,2.8144,147.3,147.14,1.356]
[1726866397401,6.2088,147.3,147.23,3.3957]
[1726866398213,2.8144,147.3,147.18,3.41901528]
[1726866398412,2.8144,147.3,147.19,1.3721]
[1726866398618,2.8144,147.3,147.19,4.7860219]
[1726866399314,2.8144,147.3,147.25,3.3952]
[1726866399711,2.8144,147.3,147.19,4.7860219]
[1726866399920,1.4157,147.3,147.28,3.3946]
[1726866400120,1.4157,147.3,147.2,1.2568]
[1726866400431,1.2892,147.31,147.2,1.2568]
[1726866400620,1.2892,147.31,147.21,1.3955]
[1726866401010,1.2892,147.31,147.28,3.3946]
[1726866401316,1.2892,147.31,147.21,1.3955]
[1726866401512,4.817,147.37,147.29,3.3943]
[1726866401713,1.3494,147.36,147.29,3.3943]
[1726866401910,1.3494,147.36,147.3,3.3941]
[1726866402114,1.3494,147.36,147.21,1.3955]
[1726866402320,1.3494,147.36,147.22,1.24761039]
[1726866402523,1.3494,147.36,147.21,1.3955]
[1726866402816,1.3494,147.36,147.22,1.24729694]
[1726866403616,1.3494,147.36,147.21,1.3955]
[1726866403822,1.3494,147.36,147.23,2.49465509]
[1726866404118,1.3494,147.36,147.24,1.24731728]
[1726866404816,1.3494,147.36,147.31,3.3939]
[1726866405328,1.4244,147.37,147.27,3.33853671]
[1726866405616,1.4244,147.37,147.25,135.78]
[1726866405617,1.4126,147.38,147.28,4.0018]
[1726866405915,1.4126,147.38,147.28,7.45164389]
[1726866406606,1.4126,147.38,147.28,4.0018]
[1726866407414,4.8052,147.38,147.3,3.394]
[1726866407716,4.8052,147.38,147.28,4.0018]
[1726866407717,1.4126,147.38,147.28,4.0018]
[1726866407931,1.4126,147.38,147.33,3.3934]
[1726866408112,1.4126,147.38,147.28,4.0018]
[1726866408511,2.823,147.42,147.29,1.24667547]
[1726866409011,2.823,147.42,147.28,4.0018]
[1726866410009,2.823,147.42,147.29,1.24688239]
[1726866410322,2.823,147.42,147.35,3.3929]
[1726866410512,2.823,147.42,147.28,4.0018]
[1726866410711,2.823,147.42,147.29,1.24691412]
[1726866411023,2.823,147.42,147.37,3.3925]
[1726866411510,2.823,147.42,147.29,3.38603514]
[1726866411708,16.0,147.43,147.3,1.24687449]
[1726866411907,16.0,147.43,147.31,1.24687449]
[1726866412118,16.0,147.43,147.32,135.74]
[1726866412421,16.0,147.43,147.33,1.24687449]
[1726866414319,16.0,147.43,147.32,135.74]
[1726866414520,16.0,147.43,147.33,1.24654145]
[1726866415624,16.0,147.43,147.42,3.3915]
[1726866416622,16.0,147.43,147.41,3.3917]
[1726866416817,16.0,147.43,147.32,135.74]
[1726866417017,16.0,147.43,147.33,1.24651052]
[1726866418120,16.0,147.43,147.4,3.3917]
[1726866418624,16.0,147.43,147.32,135.74]
[1726866418817,16.0,147.43,147.33,1.24655687]
[1726866419124,16.0,147.43,147.32,135.74]
[1726866419316,16.0,147.43,147.33,1.24658152]
[1726866419819,16.0,147.43,147.42,3.3915]
[1726866422818,16.0,147.43,147.36,135.68]
[1726866425241,1.4084,147.42,147.36,135.68]
[1726866425729,2.6652,147.41,147.36,135.68]
[1726866426318,2.6652,147.41,147.3,3.37595821]
[1726866426729,2.6652,147.41,147.29,2.6729]
[1726866427829,3.392,147.4,147.32,3.3936]
[1726866429332,6.0569,147.41,147.33,3.3935]
[1726866429630,6.0569,147.41,147.29,2.6729]
[1726866430534,2.6652,147.41,147.36,3.3927]
[1726866430736,2.6652,147.41,147.29,2.6729]
[1726866431833,2.6652,147.41,147.38,3.3923]
[1726866432435,16.0,147.43,147.37,3.33638707]
[1726866432733,16.0,147.43,147.29,9.4899]
[1726866432929,16.0,147.43,147.42,3.3915]
[1726866434334,6.669,147.43,147.42,3.3915]
[1726866434938,6.669,147.43,147.42,6.71477206]
[1726866436631,2.7036,147.51,147.47,3.3901]
[1726866438035,2.7036,147.51,147.44,3.3908]
[1726866438637,2.7036,147.51,147.4,135.66]
[1726866438839,3.3898,147.49,147.4,139.03571196]
[1726866439043,3.3898,147.49,147.4,3.37571196]
[1726866439239,3.3898,147.49,147.37,135.64]
[1726866439440,3.3904,147.47,147.37,135.64]
[1726866439846,2.7036,147.51,147.37,139.00859952]
[1726866441211,3.3899,147.49,147.37,139.00859952]
[1726866441949,3.3901,147.48,147.37,139.00859952]
[1726866442352,2.7036,147.51,147.37,139.00859952]
[1726866442554,3.42081759,147.5,147.37,139.00859952]
[1726866442749,3.42081759,147.5,147.37,135.64]
[1726866442950,2.7036,147.51,147.38,3.3922]
[1726866442951,3.3907,147.46,147.38,3.3922]
[1726866443154,1.3901,147.45,147.37,135.64]
[1726866443355,1.3585,147.44,147.37,135.64]
[1726866444395,1.3585,147.44,147.4,3.3917]
[1726866444856,1.3585,147.44,147.39,3.3921]
[1726866445256,2.6951,147.44,147.39,3.3921]
[1726866445556,2.6951,147.44,147.38,3.3923]
[1726866446155,2.6951,147.44,147.4,3.3919]
[1726866446355,2.6951,147.44,147.37,135.64]
[1726866448451,2.6951,147.44,147.39,3.3921]
[1726866449159,2.6951,147.44,147.32,135.64]
[1726866449160,2.6951,147.44,147.4,3.3919]
[1726866449663,2.6951,147.44,147.32,135.64]
[1726866450432,2.6951,147.44,147.39,3.3921]
[1726866450864,2.6951,147.44,147.35,3.35165231]
[1726866451169,2.6951,147.44,147.32,135.64]
[1726866452461,3.392,147.4,147.32,135.64]
[1726866452660,2.6951,147.44,147.32,135.64]
[1726866452960,3.3915,147.42,147.34,3.3931]
[1726866453159,2.6951,147.44,147.32,135.64]
[1726866454865,3.3916,147.42,147.35,3.3929]
[1726866455865,3.3916,147.42,147.36,3.3928]
[1726866456475,3.3917,147.41,147.35,3.393]
[1726866456864,2.6951,147.44,147.32,135.64]
[1726866457763,3.3915,147.42,147.36,3.3928]
[1726866459675,3.3915,147.42,147.37,3.3926]
[1726866462477,3.3915,147.42,147.38,3.3923]
[1726866465974,2.6951,147.44,147.29,135.68]
[1726866466585,2.6951,147.44,147.4,3.3918]
[1726866468888,2.6951,147.44,147.41,3.3915]
[1726866469880,2.6951,147.44,147.42,3.3914]
[1726866470280,3.3913,147.43,147.35,3.31003596]
[1726866470472,3.3913,147.43,147.39,3.392]
[1726866470784,3.3913,147.43,147.32,6.7875]
[1726866471082,3.3916,147.42,147.29,135.68]
[1726866471286,6.80749197,147.42,147.29,135.68]
[1726866471582,2.6951,147.44,147.29,135.68]
[1726866472284,3.3917,147.41,147.29,135.68]
[1726866472883,3.3917,147.41,147.35,3.3929]
[1726866473979,23.87272542,147.42,147.29,135.68]
[1726866474183,20.44,147.42,147.29,135.68]
[1726866474489,20.44,147.42,147.21,13.87917051]
[1726866474683,23.79538733,147.42,147.23,3.38048829]
[1726866474888,23.79538733,147.42,147.21,13.87917051]
[1726866474889,23.79538733,147.42,147.29,3.3943]
[1726866475194,23.79538733,147.42,147.21,13.87917051]
[1726866475195,21.60550145,147.41,147.21,13.87917051]
[1726866475481,3.3931,147.35,147.29,3.3944]
[1726866477189,3.3931,147.35,147.3,3.3942]
[1726866478242,3.3929,147.36,147.3,3.3942]
[1726866478888,3.3929,147.36,147.31,3.394]
[1726866479286,6.0316,147.36,147.31,3.394]
[1726866480487,3.3931,147.35,147.3,3.3942]
[1726866480678,2.6387,147.36,147.2,135.68]
[1726866480679,3.9354,147.36,147.2,135.68]
[1726866480881,3.9354,147.36,147.2,139.11299904]
[1726866481079,3.3937,147.33,147.27,3.3947]
[1726866481287,3.9354,147.36,147.27,3.3947]
[1726866481490,24.3754,147.36,147.27,3.3947]
[1726866481785,3.3939,147.32,147.27,3.3947]
[1726866481990,24.3754,147.36,147.2,3.43299904]
[1726866482292,3.3945,147.29,147.18,135.72]
[1726866483180,24.3754,147.36,147.18,135.72]
[1726866483181,3.3943,147.3,147.18,135.72]
[1726866483386,24.3754,147.36,147.18,135.72]
[1726866483831,24.3754,147.36,147.24,3.3956]
[1726866484100,3.3944,147.3,147.24,3.3956]
[1726866484788,24.3754,147.36,147.24,3.3956]
[1726866484789,3.3945,147.29,147.24,3.3956]
[1726866485986,24.3754,147.36,147.2,3.37440794]
[1726866486188,3.9354,147.36,147.18,135.72]
[1726866486388,3.9354,147.36,147.19,1.24763259]
[1726866486592,3.3936,147.33,147.28,3.3945]
[1726866486842,3.9354,147.36,147.19,3.31545789]
[1726866486994,3.3934,147.34,147.28,3.3945]
[1726866487493,3.9354,147.36,147.23,3.35450322]
[1726866487692,3.3932,147.35,147.29,3.3944]
[1726866489393,3.3934,147.34,147.29,3.3944]
[1726866492198,3.3934,147.34,147.3,3.3942]
[1726866492594,24.2954,147.36,147.23,3.43325251]
[1726866492792,24.2954,147.36,147.18,135.72]
[1726866492994,24.2954,147.36,147.19,1.24764921]
[1726866493346,3.3942,147.31,147.26,3.3949]
[1726866493497,24.2954,147.36,147.26,3.3949]
[1726866494098,24.2954,147.36,147.25,3.3953]
[1726866494394,3.3944,147.3,147.18,135.72]
[1726866494798,3.3944,147.3,147.26,3.395]
[1726866495887,3.3945,147.29,147.15,142.5752]
[1726866496088,3.3945,147.29,147.16,1.24780628]
[1726866496288,3.3945,147.29,147.23,3.3957]
[1726866497404,6.78147708,147.29,147.23,3.3957]
[1726866497599,3.3948,147.28,147.23,3.3957]
[1726866498190,24.2954,147.36,147.19,3.38223308]
[1726866498390,24.2954,147.36,147.15,142.5752]
[1726866498391,1.1660326,147.35,147.15,142.5752]
[1726866498601,1.1660326,147.35,147.16,1.24793865]
[1726866499003,3.394,147.31,147.15,142.5752]
[1726866499799,3.394,147.31,147.24,3.3954]
[1726866500000,3.394,147.31,147.21,3.44165987]
[1726866500209,3.394,147.31,147.25,3.3951]
[1726866500401,3.394,147.31,147.21,3.42569953]
[1726866500604,3.394,147.31,147.15,142.5752]
[1726866500906,24.2954,147.36,147.16,1.24772659]
[1726866501103,3.9354,147.36,147.16,1.24772659]
[1726866501402,2.6387,147.36,147.16,8.03372659]
[1726866501708,2.6387,147.36,147.17,1.24772659]
[1726866502205,21.7406,147.4,147.17,1.24772659]
[1726866502508,3.3924,147.38,147.31,3.3938]
[1726866502712,3.3924,147.38,147.2,6.7929]
[1726866502954,3.3924,147.38,147.21,1.24730503]
[1726866503809,3.3924,147.38,147.32,3.3937]
[1726866505707,3.3924,147.38,147.33,3.3935]
[1726866506799,3.3924,147.38,147.34,3.3933]
[1726866508013,3.41154499,147.39,147.28,3.36218013]
[1726866508209,3.41154499,147.39,147.25,6.7907]
[1726866508411,3.41154499,147.39,147.25,10.19699749]
[1726866508613,3.41154499,147.39,147.35,3.3929]
[1726866509619,6.80374499,147.39,147.35,3.3929]
[1726866509712,6.80374499,147.39,147.36,3.3927]
[1726866513215,7.5355,147.4,147.37,3.3924]
[1726866513520,10.94213815,147.4,147.37,3.3924]
[1726866515221,4.1436,147.4,147.39,3.3921]
[1726866515515,2.763,147.4,147.39,3.3921]
[1726866517029,1.3151,147.48,147.3,10.11180526]